fUST/lending_fUST_20250531
["ID","MTS","AMOUNT","RATE_DAILY","PERIOD"]
[363369382,1748699469860,-500.0,0.00015412,2]
[363369383,1748699469869,-500.0,0.00015412,2]
[363369384,1748699469878,-500.0,0.00015412,2]
[363369385,1748699469887,-500.0,0.00015412,2]
[363369386,1748699469897,-500.0,0.00016433,2]
[363369387,1748699469905,-500.0,0.00016433,2]
[363369388,1748699469914,-487.51811879,0.00016433,2]
[363369389,1748699469926,-12.48188121,0.00016433,2]
[363369390,1748699469935,-500.0,0.00016433,2]
[363369391,1748699469944,-390.28020744,0.00016433,2]
[363369392,1748699469951,-500.0,0.00016433,2]
[363369393,1748699469960,-430.0,0.00016438,2]
[363369394,1748699469969,-430.0,0.00016438,2]
[363369395,1748699469978,-506.78159358,0.00016438,2]
[363369396,1748699469986,-430.0,0.00016438,2]
[363369397,1748699469995,-430.0,0.00016438,2]
[363369398,1748699470004,-430.0,0.00016438,2]
[363369399,1748699470012,-430.0,0.00016438,2]
[363369400,1748699470020,-430.0,0.00016438,2]
[363369401,1748699470028,-385.08078176,0.00016438,2]
[363369402,1748699470037,-171.29780201,0.00016438,2]
[363369403,1748699470045,-430.0,0.00016438,2]
[363369404,1748699470054,-430.0,0.00016712,2]
[363369405,1748699470063,-430.0,0.00016712,2]
[363369406,1748699470073,-430.0,0.00016712,2]
[363369407,1748699470082,-430.0,0.00016712,2]
[363369408,1748699470091,-430.0,0.00016712,2]
[363369409,1748699470100,-430.0,0.00016712,2]
[363369410,1748699470110,-430.0,0.00016986,2]
[363369411,1748699470119,-430.0,0.00016986,2]
[363369412,1748699470129,-430.0,0.00016986,2]
[363369413,1748699470138,-430.0,0.00016986,2]
[363369414,1748699470148,-430.0,0.00016986,2]
[363369415,1748699470157,-430.0,0.0001726,2]
[363369416,1748699470166,-430.0,0.0001726,2]
[363369417,1748699470176,-430.0,0.0001726,2]
[363369418,1748699470185,-430.0,0.0001726,2]
[363369419,1748699470194,-430.0,0.0001726,2]
[363369420,1748699470203,-430.0,0.00017534,2]
[363369421,1748699470213,-430.0,0.00017534,2]
[363369422,1748699470222,-430.0,0.00017534,2]
[363369423,1748699470231,-430.0,0.00017534,2]
[363369424,1748699470241,-430.0,0.00017534,2]
[363369425,1748699470251,-430.0,0.00017808,2]
[363369426,1748699470260,-430.0,0.00017808,2]
[363369427,1748699470270,-430.0,0.00017808,2]
[363369428,1748699470279,-430.0,0.00017808,2]
[363369429,1748699470289,-430.0,0.00018082,2]
[363369430,1748699470299,-430.0,0.00018082,2]
[363369431,1748699470308,-430.0,0.00018082,2]
[363369432,1748699470318,-430.0,0.00018356,2]
[363369433,1748699470327,-430.0,0.00018356,2]
[363369434,1748699470337,-430.0,0.00018356,2]
[363369435,1748699470347,-385.36366285,0.00019178,2]
[363369436,1748699470356,-430.0,0.0002,2]
[363369437,1748699470366,-430.0,0.00020273,2]
[363369438,1748699470376,-430.0,0.00020547,2]
[363369439,1748699470385,-430.0,0.00020821,2]
[363369440,1748699470395,-430.0,0.00021095,2]
[363369441,1748699470404,-430.0,0.00021369,2]
[363369442,1748699470414,-5060.34,0.00021581,2]
[363369443,1748699470424,-430.0,0.00021643,2]
[363369444,1748699470433,-430.0,0.00021917,2]
[363369445,1748699470443,-548.88,0.00022191,2]
[363369446,1748699470453,-10120.68,0.00023542,2]
[363369447,1748699470463,-951626.79412467,0.000238,2]
[363369448,1748699470557,-430.0,0.00016438,2]
[363369449,1748699470567,-430.0,0.00016438,2]
[363369450,1748699470576,-430.0,0.00016712,2]
[363369451,1748699470585,-430.0,0.00016712,2]
[363369452,1748699470595,-430.0,0.00016712,2]
[363369453,1748699470604,-395.98781562,0.00016986,2]
[363369454,1748699470614,-341.72571912,0.00016986,2]
[363369455,1748699470623,-218.57,0.00017808,2]
[363369456,1748699470632,-381.91660989,0.00018082,2]
[363369457,1748699470642,-430.0,0.0001863,2]
[363369458,1748699470651,-430.0,0.00018904,2]
[363369459,1748699470660,-430.0,0.00019178,2]
[363369460,1748699470670,-430.0,0.00019452,2]
[363369461,1748699470681,-430.0,0.00019726,2]
[363369462,1748699470693,-311.26,0.0002,2]
[363369463,1748699470702,-2200.0,0.00022939,2]
[363369464,1748699470712,-1524.21258489,0.000238,2]
[363369465,1748699470789,-300.0,0.00015411,2]
[363369466,1748699470798,-562.10826671,0.00016438,2]
[363369467,1748699470807,-430.0,0.00016986,2]
[363369468,1748699470817,-430.0,0.0001726,2]
[363369469,1748699470826,-430.0,0.00017534,2]
[363369470,1748699470835,-430.0,0.00017808,2]
[363369471,1748699470844,-430.0,0.00018082,2]
[363369472,1748699470853,-430.0,0.00018356,2]
[363369473,1748699470863,-211.80361192,0.0001863,2]
[363369474,1748699470873,-766407.09546485,0.000238,2]
[363369475,1748699470883,-27485.50454644,0.000238,4]
[363369476,1748699471002,-430.0,0.00016438,2]
[363369477,1748699471011,-430.0,0.00016438,2]
[363369478,1748699471020,-430.0,0.00016438,2]
[363369479,1748699471029,-430.0,0.00016712,2]
[363369480,1748699471039,-551.38219742,0.00016712,2]
[363369481,1748699471048,-430.0,0.00016986,2]
[363369482,1748699471057,-430.0,0.0001726,2]
[363369483,1748699471067,-430.0,0.00017534,2]
[363369484,1748699471076,-430.0,0.00017808,2]
[363369485,1748699471086,-824.47,0.0002379,10]
[363369486,1748699471096,-5448.75523781,0.000238,4]
[363369487,1748699471139,-0.10118804,0.00018082,2]
[363369500,1748700371090,353.825536,0.000155,30]
[363369501,1748700428126,-334.467427,0.00015742,2]
[363369502,1748700428148,-170.1159654,0.00016328,2]
[363369503,1748700428169,-300.0,0.00016426,2]
[363369504,1748700428191,-300.0,0.00016427,2]
[363369505,1748700428212,-500.0,0.00016427,2]
[363369506,1748700428233,-298.98937407,0.00016427,2]
[363369507,1748700428258,-431.78300885,0.00016427,2]
[363369508,1748700432111,-68.21699115,0.00016427,2]
[363369509,1748700432136,-500.0,0.00016427,2]
[363369510,1748700432162,-162.10536619,0.00016427,2]
[363369511,1748700432185,-427.89874045,0.00016427,2]
[363369512,1748700435104,-72.10125955,0.00016427,2]
[363369513,1748700435126,-161.00133664,0.00016427,2]
[363369514,1748700435149,-135.91912597,0.00016427,2]
[363369515,1748700439197,-204.02266927,0.00016427,2]
[363369516,1748700526197,178.692155,0.00013699,2]
[363369518,1748700552136,-5107.96734741,0.0001555,2]
[363369519,1748700564106,-172.88640012,0.0001555,2]
[363369541,1748700632549,-40.73978997,0.0001555,2]
[363369542,1748700632559,-300.0,0.00016425,2]
[363369543,1748700632568,-360.87777845,0.00016426,2]
[363369555,1748700638382,-198.4147834,0.00016426,2]
[363369556,1748700638392,-500.0,0.00016426,2]
[363369557,1748700638404,-500.0,0.00016426,2]
[363369558,1748700638413,-646.55119186,0.00016426,2]
[363369559,1748700638423,-500.0,0.00016426,2]
[363369560,1748700638432,-500.0,0.00016426,2]
[363369561,1748700638441,-500.0,0.00016426,2]
[363369562,1748700638451,-500.0,0.00016426,2]
[363369563,1748700638460,-148.57282885,0.00016426,2]
[363369564,1748700638477,-351.42717115,0.00016426,2]
[363369565,1748700638486,-500.0,0.00016426,2]
[363369566,1748700638496,-39.88790974,0.00016426,2]
[363369567,1748700638507,-460.11209026,0.00016426,2]
[363369568,1748700638517,-500.0,0.00016426,2]
[363369569,1748700638526,-500.0,0.00016426,2]
[363369571,1748700638536,-500.0,0.00016426,2]
[363369572,1748700638545,-500.0,0.00016426,2]
[363369573,1748700638555,-413.15333481,0.00016426,2]
[363369574,1748700638564,-500.0,0.00016426,2]
[363369575,1748700638574,-304.56380168,0.00016426,2]
[363369576,1748700638583,-500.0,0.00016426,2]
[363369577,1748700638594,-500.0,0.00016426,2]
[363369578,1748700638604,-429.94590404,0.00016426,2]
[363369579,1748700638614,-500.0,0.00016426,2]
[363369580,1748700638623,-500.0,0.00016426,2]
[363369581,1748700638633,-450.0,0.00016426,2]
[363369582,1748700638642,-500.0,0.00016426,2]
[363369583,1748700638652,-47377.60310874,0.00016427,2]
[363369584,1748700638662,-160.0,0.00016437,2]
[363369585,1748700638671,-500.0,0.00016438,2]
[363369586,1748700638681,-500.0,0.00016438,2]
[363369587,1748700638691,-500.0,0.00016438,2]
[363369588,1748700638700,-500.0,0.00016438,2]
[363369589,1748700638711,-500.0,0.00016438,2]
[363369590,1748700638720,-500.0,0.00016438,2]
[363369591,1748700638730,-502.03696478,0.00016438,2]
[363369592,1748700638740,-430.0,0.00016438,2]
[363369593,1748700638749,-430.0,0.00016438,2]
[363369594,1748700638759,-430.0,0.00016438,2]
[363369595,1748700638769,-430.0,0.00016438,2]
[363369596,1748700638778,-430.0,0.00016438,2]
[363369597,1748700638788,-430.0,0.00016438,2]
[363369598,1748700638798,-430.0,0.00016438,2]
[363369599,1748700638808,-430.0,0.00016438,2]
[363369600,1748700638818,-430.0,0.00016438,2]
[363369601,1748700638827,-430.0,0.00016438,2]
[363369602,1748700638837,-475.25336373,0.00016438,2]
[363369603,1748700638846,-430.0,0.00016438,2]
[363369604,1748700638856,-430.0,0.00016438,2]
[363369605,1748700638866,-430.0,0.00016438,2]
[363369606,1748700638876,-430.0,0.00016438,2]
[363369607,1748700638886,-430.0,0.00016438,2]
[363369608,1748700638897,-430.0,0.00016438,2]
[363369609,1748700638906,-430.0,0.00016438,2]
[363369610,1748700638916,-202.93222746,0.00016438,2]
[363369611,1748700638926,-430.0,0.00016438,2]
[363369612,1748700638935,-430.0,0.00016438,2]
[363369613,1748700638945,-430.0,0.00016438,2]
[363369614,1748700638955,-430.0,0.00016438,2]
[363369615,1748700638964,-430.0,0.00016438,2]
[363369616,1748700638973,-430.0,0.00016438,2]
[363369617,1748700638983,-300.0,0.00016438,2]
[363369618,1748700638993,-412.37489737,0.00016438,2]
[363369619,1748700639002,-430.0,0.00016438,2]
[363369620,1748700639012,-430.0,0.00016438,2]
[363369621,1748700639021,-430.0,0.00016438,2]
[363369622,1748700639030,-402.81062279,0.00016438,2]
[363369623,1748700639039,-371.44406114,0.00016438,2]
[363369625,1748700639050,-430.0,0.00016438,2]
[363369626,1748700639059,-430.0,0.00016438,2]
[363369627,1748700639068,-430.0,0.00016438,2]
[363369628,1748700639078,-430.0,0.00016438,2]
[363369629,1748700639088,-430.0,0.00016438,2]
[363369630,1748700639099,-430.0,0.00016438,2]
[363369631,1748700639108,-322.22398152,0.00016438,2]
[363369632,1748700639118,-430.0,0.00016438,2]
[363369633,1748700639127,-363.29837282,0.00016438,2]
[363369634,1748700639137,-472.38219062,0.00016438,2]
[363369635,1748700639146,-430.0,0.00016438,2]
[363369636,1748700639156,-430.0,0.00016438,2]
[363369637,1748700639166,-430.0,0.00016438,2]
[363369638,1748700639176,-373.60411886,0.00016438,2]
[363369639,1748700639186,-259.86814561,0.00016438,2]
[363369640,1748700639195,-430.0,0.00016438,2]
[363369641,1748700639204,-430.0,0.00016438,2]
[363369642,1748700639214,-430.0,0.00016438,2]
[363369643,1748700639224,-430.0,0.00016438,2]
[363369644,1748700639234,-430.0,0.00016438,2]
[363369645,1748700639243,-430.0,0.00016438,2]
[363369646,1748700639253,-430.0,0.00016438,2]
[363369647,1748700639263,-430.0,0.00016438,2]
[363369648,1748700639272,-430.0,0.00016438,2]
[363369649,1748700639281,-430.0,0.00016438,2]
[363369650,1748700639292,-430.0,0.00016438,2]
[363369651,1748700639301,-430.0,0.00016438,2]
[363369652,1748700639311,-430.0,0.00016438,2]
[363369653,1748700639321,-430.0,0.00016438,2]
[363369654,1748700639331,-430.0,0.00016438,2]
[363369655,1748700639341,-402.10128529,0.00016438,2]
[363369656,1748700639351,-430.0,0.00016438,2]
[363369657,1748700639361,-430.0,0.00016438,2]
[363369658,1748700639370,-430.0,0.00016438,2]
[363369659,1748700639380,-500.0,0.00016438,2]
[363369660,1748700639390,-430.0,0.00016438,2]
[363369661,1748700639399,-430.0,0.00016438,2]
[363369662,1748700639410,-430.0,0.00016438,2]
[363369663,1748700639419,-430.0,0.00016438,2]
[363369664,1748700639428,-203.72963428,0.00016438,2]
[363369665,1748700639438,-323.66393533,0.00016438,2]
[363369666,1748700639448,-381.14827141,0.00016438,2]
[363369667,1748700639457,-430.0,0.00016438,2]
[363369668,1748700639467,-430.0,0.00016438,2]
[363369669,1748700639476,-430.0,0.00016438,2]
[363369670,1748700639485,-588.79,0.00016438,2]
[363369671,1748700639495,-430.0,0.00016438,2]
[363369672,1748700639505,-430.0,0.00016438,2]
[363369673,1748700639514,-430.0,0.00016438,2]
[363369674,1748700639689,-430.0,0.00016438,2]
[363369675,1748700639700,-430.0,0.00016438,2]
[363369676,1748700639710,-430.0,0.00016438,2]
[363369677,1748700639720,-430.0,0.00016438,2]
[363369678,1748700639730,-430.0,0.00016438,2]
[363369679,1748700639740,-430.0,0.00016438,2]
[363369680,1748700639749,-430.0,0.00016438,2]
[363369681,1748700639759,-430.0,0.00016438,2]
[363369682,1748700639769,-430.0,0.00016438,2]
[363369683,1748700639780,-430.0,0.00016438,2]
[363369684,1748700639789,-430.0,0.00016438,2]
[363369685,1748700639799,-430.0,0.00016438,2]
[363369686,1748700639809,-355.58193868,0.00016438,2]
[363369687,1748700639819,-430.0,0.00016438,2]
[363369688,1748700639828,-430.0,0.00016438,2]
[363369689,1748700639837,-430.0,0.00016438,2]
[363369690,1748700639847,-430.0,0.00016438,2]
[363369691,1748700639856,-151.42443319,0.00016438,2]
[363369692,1748700639866,-430.0,0.00016438,2]
[363369693,1748700639876,-430.0,0.00016438,2]
[363369694,1748700639885,-430.0,0.00016438,2]
[363369695,1748700639895,-430.0,0.00016438,2]
[363369696,1748700639905,-430.0,0.00016438,2]
[363369697,1748700639915,-440.00078782,0.00016438,2]
[363369698,1748700639925,-430.0,0.00016438,2]
[363369699,1748700639934,-430.0,0.00016438,2]
[363369700,1748700639944,-430.0,0.00016438,2]
[363369701,1748700639955,-500.0,0.00016438,2]
[363369702,1748700639965,-430.0,0.00016438,2]
[363369703,1748700639975,-430.0,0.00016438,2]
[363369704,1748700639985,-430.0,0.00016438,2]
[363369705,1748700639995,-370.0,0.00016438,2]
[363369707,1748700640005,-430.0,0.00016438,2]
[363369709,1748700640015,-430.0,0.00016438,2]
[363369710,1748700640024,-430.0,0.00016438,2]
[363369711,1748700640034,-350.0,0.00016438,2]
[363369712,1748700640044,-430.0,0.00016438,2]
[363369713,1748700640054,-430.0,0.00016438,2]
[363369714,1748700640064,-430.0,0.00016438,2]
[363369715,1748700640081,-430.0,0.00016438,2]
[363369716,1748700640094,-430.0,0.00016438,2]
[363369717,1748700640104,-451.98,0.00016438,2]
[363369718,1748700640115,-430.0,0.00016438,2]
[363369719,1748700640125,-430.0,0.00016438,2]
[363369720,1748700640136,-430.0,0.00016438,2]
[363369721,1748700640147,-430.0,0.00016438,2]
[363369722,1748700640160,-196.68,0.00016438,2]
[363369723,1748700640170,-430.0,0.00016438,2]
[363369724,1748700640181,-430.0,0.00016438,2]
[363369725,1748700640192,-430.0,0.00016438,2]
[363369726,1748700640202,-430.0,0.00016438,2]
[363369727,1748700640211,-430.0,0.00016438,2]
[363369728,1748700640222,-430.0,0.00016438,2]
[363369729,1748700640233,-528.64,0.00016438,2]
[363369730,1748700640243,-430.0,0.00016438,2]
[363369731,1748700640253,-500.0,0.00016438,2]
[363369732,1748700640262,-430.0,0.00016438,2]
[363369733,1748700640272,-430.0,0.00016438,2]
[363369734,1748700640282,-430.0,0.00016438,2]
[363369736,1748700640291,-430.0,0.00016438,2]
[363369738,1748700640301,-430.0,0.00016438,2]
[363369740,1748700640310,-430.0,0.00016438,2]
[363369742,1748700640319,-430.0,0.00016438,2]
[363369744,1748700640329,-430.0,0.00016438,2]
[363369746,1748700640339,-376.36815462,0.00016438,2]
[363369748,1748700640348,-430.0,0.00016438,2]
[363369750,1748700640357,-430.0,0.00016438,2]
[363369752,1748700640367,-430.0,0.00016438,2]
[363369754,1748700640377,-1460.57,0.00016438,2]
[363369756,1748700640386,-1848.08,0.00016438,2]
[363369758,1748700640396,-430.0,0.00016438,2]
[363369760,1748700640408,-464.83,0.00016438,2]
[363369762,1748700640417,-430.0,0.00016438,2]
[363369764,1748700640427,-382.14472185,0.00016438,2]
[363369766,1748700640436,-430.0,0.00016438,2]
[363369768,1748700640446,-430.0,0.00016438,2]
[363369770,1748700640455,-430.0,0.00016438,2]
[363369772,1748700640464,-430.0,0.00016438,2]
[363369774,1748700640474,-430.0,0.00016438,2]
[363369776,1748700640483,-430.0,0.00016438,2]
[363369778,1748700640492,-430.0,0.00016438,2]
[363369780,1748700640502,-430.0,0.00016438,2]
[363369782,1748700640511,-430.0,0.00016438,2]
[363369784,1748700640521,-430.0,0.00016438,2]
[363369786,1748700640531,-1263.04,0.00016438,2]
[363369788,1748700640540,-430.0,0.00016438,2]
[363369790,1748700640550,-430.0,0.00016438,2]
[363369792,1748700640559,-430.0,0.00016438,2]
[363369794,1748700640569,-430.0,0.00016438,2]
[363369796,1748700640579,-430.0,0.00016438,2]
[363369797,1748700640588,-159.4109647,0.00016438,2]
[363369798,1748700640597,-430.0,0.00016438,2]
[363369799,1748700640607,-2028.81,0.00016438,2]
[363369800,1748700640616,-430.0,0.00016438,2]
[363369801,1748700640626,-430.0,0.00016438,2]
[363369803,1748700640635,-430.0,0.00016438,2]
[363369804,1748700640645,-430.0,0.00016438,2]
[363369805,1748700640655,-400.0,0.00016438,2]
[363369806,1748700640665,-430.0,0.00016438,2]
[363369807,1748700640675,-320.0,0.00016438,2]
[363369808,1748700640684,-430.0,0.00016438,2]
[363369809,1748700640693,-430.0,0.00016438,2]
[363369810,1748700640703,-466.83916852,0.00016438,2]
[363369811,1748700640713,-430.0,0.00016438,2]
[363369812,1748700640723,-474.84859583,0.00016438,2]
[363369813,1748700640732,-430.0,0.00016438,2]
[363369814,1748700640743,-430.0,0.00016438,2]
[363369815,1748700640753,-430.0,0.00016438,2]
[363369816,1748700640765,-430.0,0.00016438,2]
[363369817,1748700640777,-430.0,0.00016438,2]
[363369819,1748700640789,-430.0,0.00016438,2]
[363369820,1748700640800,-430.0,0.00016438,2]
[363369821,1748700640810,-430.0,0.00016438,2]
[363369822,1748700640820,-430.0,0.00016438,2]
[363369823,1748700640830,-430.0,0.00016438,2]
[363369824,1748700640840,-562.19,0.00016438,2]
[363369825,1748700640850,-430.0,0.00016438,2]
[363369826,1748700640860,-430.0,0.00016438,2]
[363369827,1748700640870,-430.0,0.00016438,2]
[363369828,1748700640880,-430.0,0.00016438,2]
[363369829,1748700640890,-3276.09,0.00016438,2]
[363369830,1748700640900,-430.0,0.00016438,2]
[363369832,1748700640914,-400.21125402,0.00016438,2]
[363369833,1748700640924,-430.0,0.00016438,2]
[363369834,1748700640933,-430.0,0.00016438,2]
[363369835,1748700640943,-430.0,0.00016438,2]
[363369836,1748700640953,-430.0,0.00016438,2]
[363369837,1748700640964,-430.0,0.00016438,2]
[363369838,1748700640984,-2370.4,0.00016438,2]
[363369839,1748700640996,-430.0,0.00016438,2]
[363369840,1748700641006,-430.0,0.00016438,2]
[363369841,1748700641019,-430.0,0.00016438,2]
[363369842,1748700641029,-430.0,0.00016438,2]
[363369843,1748700641039,-482.51,0.00016438,2]
[363369844,1748700641050,-430.0,0.00016438,2]
[363369845,1748700641060,-430.0,0.00016438,2]
[363369846,1748700641070,-829.34,0.00016438,2]
[363369847,1748700641080,-430.0,0.00016438,2]
[363369848,1748700641092,-430.0,0.00016438,2]
[363369849,1748700641103,-430.0,0.00016438,2]
[363369850,1748700641113,-430.0,0.00016438,2]
[363369851,1748700641123,-1249.75,0.00016438,2]
[363369852,1748700641135,-332.41062033,0.00016438,2]
[363369853,1748700641145,-685.88,0.00016438,2]
[363369854,1748700641156,-430.0,0.00016438,2]
[363369855,1748700641166,-1057.94,0.00016438,2]
[363369856,1748700641176,-430.0,0.00016438,2]
[363369857,1748700641186,-430.0,0.00016438,2]
[363369858,1748700641197,-430.0,0.00016438,2]
[363369859,1748700641207,-365.97458137,0.00016438,2]
[363369860,1748700641217,-430.0,0.00016438,2]
[363369861,1748700641227,-430.0,0.00016438,2]
[363369862,1748700641237,-350.0,0.00016438,2]
[363369863,1748700641247,-430.0,0.00016438,2]
[363369864,1748700641257,-430.0,0.00016438,2]
[363369865,1748700641267,-430.0,0.00016438,2]
[363369866,1748700641277,-321.49134688,0.00016438,2]
[363369867,1748700641287,-391.21854392,0.00016438,2]
[363369868,1748700641297,-430.0,0.00016438,2]
[363369869,1748700641307,-430.0,0.00016438,2]
[363369870,1748700641317,-736.9,0.00016438,2]
[363369871,1748700641327,-430.0,0.00016438,2]
[363369872,1748700641337,-430.0,0.00016438,2]
[363369873,1748700641347,-512.93519082,0.00016438,2]
[363369874,1748700641358,-430.0,0.00016438,2]
[363369875,1748700641368,-430.0,0.00016438,2]
[363369876,1748700641378,-430.0,0.00016438,2]
[363369877,1748700641388,-430.0,0.00016438,2]
[363369878,1748700641399,-430.0,0.00016438,2]
[363369879,1748700641411,-430.0,0.00016438,2]
[363369880,1748700641421,-430.0,0.00016438,2]
[363369881,1748700641431,-430.0,0.00016438,2]
[363369882,1748700641441,-379.45727242,0.00016438,2]
[363369883,1748700641450,-430.0,0.00016438,2]
[363369884,1748700641460,-430.0,0.00016438,2]
[363369885,1748700641470,-430.0,0.00016438,2]
[363369886,1748700641480,-430.0,0.00016438,2]
[363369887,1748700641490,-430.0,0.00016438,2]
[363369888,1748700641499,-430.0,0.00016438,2]
[363369889,1748700641509,-430.0,0.00016438,2]
[363369890,1748700641519,-430.0,0.00016438,2]
[363369891,1748700641529,-430.0,0.00016438,2]
[363369892,1748700641540,-430.0,0.00016438,2]
[363369893,1748700641550,-430.0,0.00016438,2]
[363369894,1748700641560,-430.0,0.00016438,2]
[363369895,1748700641570,-430.0,0.00016438,2]
[363369896,1748700641579,-704.72,0.00016438,2]
[363369897,1748700641589,-430.0,0.00016438,2]
[363369898,1748700641599,-450.78938147,0.00016438,2]
[363369899,1748700641609,-430.0,0.00016438,2]
[363369900,1748700641619,-430.0,0.00016438,2]
[363369901,1748700641628,-430.0,0.00016438,2]
[363369902,1748700641639,-359.15479179,0.00016438,2]
[363369903,1748700641648,-430.0,0.00016438,2]
[363369904,1748700641659,-430.0,0.00016438,2]
[363369905,1748700641669,-430.0,0.00016438,2]
[363369906,1748700641679,-430.0,0.00016438,2]
[363369907,1748700641689,-430.0,0.00016438,2]
[363369908,1748700641699,-430.0,0.00016438,2]
[363369909,1748700641708,-430.0,0.00016438,2]
[363369910,1748700641718,-639.52,0.00016438,2]
[363369911,1748700641729,-430.0,0.00016438,2]
[363369912,1748700641738,-430.0,0.00016438,2]
[363369913,1748700641748,-430.0,0.00016438,2]
[363369914,1748700641758,-430.0,0.00016438,2]
[363369915,1748700641767,-430.0,0.00016438,2]
[363369916,1748700641777,-430.0,0.00016438,2]
[363369917,1748700641787,-430.0,0.00016438,2]
[363369918,1748700641797,-435.53396256,0.00016438,2]
[363369919,1748700641807,-430.0,0.00016438,2]
[363369920,1748700641817,-430.0,0.00016438,2]
[363369921,1748700641827,-370.0,0.00016438,2]
[363369922,1748700641837,-430.0,0.00016438,2]
[363369923,1748700641847,-416.33006213,0.00016438,2]
[363369924,1748700641857,-1092.46,0.00016438,2]
[363369925,1748700641867,-430.0,0.00016438,2]
[363369926,1748700641877,-430.0,0.00016438,2]
[363369927,1748700641886,-372.93463033,0.00016438,2]
[363369928,1748700641896,-447.66,0.00016438,2]
[363369929,1748700641906,-430.0,0.00016438,2]
[363369930,1748700641915,-430.0,0.00016438,2]
[363369931,1748700641924,-430.0,0.00016438,2]
[363369932,1748700641934,-430.0,0.00016438,2]
[363369933,1748700641943,-430.0,0.00016438,2]
[363369934,1748700641953,-430.0,0.00016438,2]
[363369935,1748700641963,-430.0,0.00016438,2]
[363369936,1748700641973,-430.0,0.00016438,2]
[363369937,1748700641982,-430.0,0.00016438,2]
[363369938,1748700641992,-430.0,0.00016438,2]
[363369939,1748700642001,-430.0,0.00016438,2]
[363369940,1748700642011,-430.0,0.00016438,2]
[363369941,1748700642021,-430.0,0.00016438,2]
[363369942,1748700642031,-430.0,0.00016438,2]
[363369943,1748700642041,-163.63637398,0.00016438,2]
[363369944,1748700642051,-430.0,0.00016438,2]
[363369945,1748700642060,-430.0,0.00016438,2]
[363369946,1748700642070,-359.06615995,0.00016438,2]
[363369947,1748700642080,-430.0,0.00016438,2]
[363369948,1748700642090,-430.0,0.00016438,2]
[363369949,1748700642103,-430.0,0.00016438,2]
[363369950,1748700642112,-430.0,0.00016438,2]
[363369951,1748700642122,-430.0,0.00016438,2]
[363369952,1748700642132,-430.0,0.00016438,2]
[363369953,1748700642143,-431.18350251,0.00016612,2]
[363369954,1748700642152,-430.0,0.00016712,2]
[363369955,1748700642164,-430.0,0.00016712,2]
[363369956,1748700642174,-554.61444203,0.00016712,2]
[363369957,1748700642184,-151.0,0.00016712,2]
[363369958,1748700642194,-430.0,0.00016712,2]
[363369959,1748700642203,-151.0,0.00016712,2]
[363369960,1748700642213,-430.0,0.00016712,2]
[363369961,1748700642280,-430.0,0.00016712,2]
[363369962,1748700642293,-430.0,0.00016712,2]
[363369963,1748700642303,-295.670136,0.00016712,2]
[363369964,1748700642312,-151.0,0.00016712,2]